bitfinex-derivatives/quotes_SOLF0:USTF0_20250425
["timestamp","ask_amount","ask_price","bid_price","bid_amount"]
[1745591400688,18.91111856,154.31,154.25,28.16]
[1745591401387,18.91111856,154.31,154.26,23.41750948]
[1745591401692,14.94671856,154.31,154.28,16.93910948]
[1745591401991,16.93910948,154.33,154.29,28.1]
[1745591402184,16.93910948,154.31,154.27,28.1]
[1745591402390,16.93910948,154.31,154.25,28.1]
[1745591403093,16.93910948,154.33,154.25,28.1]
[1745591403589,16.93910948,154.33,154.26,6.4782]
[1745591403788,16.93910948,154.31,154.25,28.1]
[1745591403993,16.93910948,154.33,154.25,28.1]
[1745591404197,45.03910948,154.35,154.26,16.93910948]
[1745591404494,45.03910948,154.35,154.27,6.4778]
[1745591404687,16.93910948,154.35,154.27,6.4778]
[1745591405084,16.93910948,154.35,154.28,6.4776]
[1745591405289,16.93910948,154.35,154.29,28.1]
[1745591406194,16.93910948,154.33,154.29,28.1]
[1745591409100,16.93910948,154.35,154.29,28.1]
[1745591409292,16.93910948,154.36,154.29,28.1]
[1745591409997,16.93910948,154.36,154.29,34.577]
[1745591411198,16.93910948,154.36,154.3,6.4768]
[1745591411387,16.93910948,154.36,154.29,28.1]
[1745591411697,16.93910948,154.36,154.29,34.5769]
[1745591412397,16.93910948,154.36,154.3,6.4767]
[1745591412692,16.93910948,154.34,154.29,28.1]
[1745591413096,16.93910948,154.36,154.29,28.1]
[1745591413392,16.93910948,154.36,154.31,6.4762]
[1745591413896,16.93910948,154.36,154.3,6.4767]
[1745591414297,16.93910948,154.36,154.29,28.1]
[1745591414592,28.1,154.39,154.3,16.93910948]
[1745591414800,16.93910948,154.4,154.3,20.67830948]
[1745591414994,16.93910948,154.4,154.33,6.4751]
[1745591415193,16.93910948,154.4,154.33,34.5751]
[1745591415497,28.86350948,154.42,154.34,16.93910948]
[1745591415690,11.9244,154.42,154.34,16.93910948]
[1745591416288,92.00463228,154.51,154.32,16.93910948]
[1745591416496,16.93910948,154.43,154.37,6.4736]
[1745591416798,16.93910948,154.43,154.37,34.5536]
[1745591417696,16.93910948,154.43,154.38,6.4732]
[1745591418100,16.93910948,154.45,154.37,28.08]
[1745591418293,16.93910948,154.45,154.38,16.93910948]
[1745591418499,20.95410948,154.47,154.41,6.4722]
[1745591418696,20.95410948,154.47,154.38,16.93910948]
[1745591418898,20.95410948,154.47,154.38,20.91110948]
[1745591419094,16.93910948,154.45,154.38,3.972]
[1745591419301,16.93910948,154.43,154.37,28.08]
[1745591419800,16.93910948,154.45,154.38,6.4732]
[1745591420001,16.93910948,154.45,154.37,28.08]
[1745591420302,20.95410948,154.47,154.38,16.93910948]
[1745591421405,20.95410948,154.47,154.41,6.4722]
[1745591421699,20.95410948,154.47,154.38,16.93910948]
[1745591421896,16.93910948,154.45,154.38,16.93910948]
[1745591422097,16.93910948,154.45,154.37,28.08]
[1745591423205,4.015,154.47,154.4,16.93910948]
[1745591423400,4.015,154.47,154.41,28.08]
[1745591423702,4.015,154.47,154.41,34.5521]
[1745591424004,4.015,154.47,154.41,28.08]
[1745591424306,4.015,154.47,154.43,6.4711]
[1745591424504,52.73090948,154.49,154.43,6.4711]
[1745591424906,16.93910948,154.47,154.38,16.93910948]
[1745591425111,16.93910948,154.45,154.37,28.08]
[1745591425400,3.9386,154.46,154.38,45.01910948]
[1745591425899,3.9386,154.46,154.39,6.4729]
[1745591426106,3.9386,154.46,154.38,45.01910948]
[1745591426707,16.93910948,154.45,154.38,28.08]
[1745591426908,16.93910948,154.43,154.38,28.08]
[1745591427103,16.93910948,154.43,154.34,16.93910948]
[1745591427705,16.93910948,154.43,154.37,6.4738]
[1745591428001,28.08,154.45,154.4,16.93910948]
[1745591428204,3.9386,154.46,154.4,16.93910948]
[1745591428399,7.7118,154.49,154.42,16.93910948]
[1745591428913,28.08,154.5,154.45,6.4705]
[1745591429110,3.9108,154.52,154.44,16.93910948]
[1745591430007,7.945,154.54,154.48,16.93910948]
[1745591430713,6.4668,154.54,154.48,23.40810948]
[1745591430913,3.8479,154.56,154.48,23.40810948]
[1745591431115,6.4666,154.55,154.48,23.40810948]
[1745591431408,3.8479,154.56,154.49,28.04]
[1745591432106,6.4666,154.55,154.49,34.5087]
[1745591433218,10.314,154.56,154.49,34.5087]
[1745591433410,10.314,154.56,154.5,6.4683]
[1745591433611,10.314,154.56,154.49,28.04]
[1745591433807,3.8479,154.56,154.51,6.4677]
[1745591434115,3.8479,154.56,154.5,16.93910948]
[1745591434313,3.8479,154.56,154.5,23.40730948]
[1745591434515,3.8479,154.56,154.5,16.93910948]
[1745591435610,42.1817,154.58,154.5,16.93910948]
[1745591436711,7.6365,154.58,154.5,16.93910948]
[1745591436916,16.93910948,154.61,154.52,16.93910948]
[1745591437117,16.93910948,154.61,154.53,28.02]
[1745591437415,16.93910948,154.57,154.53,28.02]
[1745591437708,16.93910948,154.59,154.53,28.02]
[1745591438308,23.40320948,154.61,154.54,6.4665]
[1745591438511,23.40320948,154.61,154.53,28.02]
[1745591438712,16.93910948,154.59,154.53,28.02]
[1745591438911,23.40400948,154.59,154.53,28.02]
[1745591439822,6.4653,154.58,154.53,28.02]
[1745591440712,6.4655,154.57,154.53,28.02]
[1745591440920,16.93910948,154.55,154.49,28.02]
[1745591441122,16.93910948,154.55,154.48,28.02]
[1745591441312,16.93910948,154.55,154.49,6.4687]
[1745591441515,3.7102,154.56,154.48,44.95910948]
[1745591441716,3.7102,154.56,154.5,16.93910948]
[1745591442318,51.42400948,154.59,154.52,6.4672]
[1745591442724,44.95910948,154.59,154.52,6.4672]
[1745591442923,44.95910948,154.59,154.5,16.93910948]
[1745591443123,6.4653,154.58,154.51,6.4677]
[1745591443326,44.95910948,154.59,154.51,6.4677]
[1745591443632,16.93910948,154.55,154.48,28.02]
[1745591444120,16.93910948,154.57,154.48,28.02]
[1745591444726,23.40480948,154.57,154.49,16.93910948]
[1745591444927,16.93910948,154.57,154.49,16.93910948]
[1745591446027,6.4662,154.56,154.49,23.40780948]
[1745591446229,16.93910948,154.57,154.49,23.40780948]
[1745591446528,6.4662,154.56,154.5,6.4684]
[1745591447231,23.40470948,154.57,154.5,6.4684]
[1745591447432,44.95910948,154.59,154.49,16.93910948]
[1745591447724,28.02,154.59,154.51,16.93910948]
[1745591447928,34.4848,154.59,154.51,16.93910948]
[1745591448129,28.02,154.59,154.51,16.93910948]
[1745591448737,6.4657,154.57,154.51,23.40680948]
[1745591449228,16.93910948,154.57,154.49,16.93910948]
[1745591449827,16.93910948,154.57,154.47,28.02]
[1745591450033,16.93910948,154.57,154.48,16.93910948]
[1745591450435,16.93910948,154.57,154.5,6.4681]
[1745591450932,44.95910948,154.59,154.5,16.93910948]
[1745591451131,28.02,154.59,154.52,16.93910948]
[1745591451633,6.4653,154.58,154.52,23.40640948]
[1745591451829,16.93910948,154.57,154.49,3.7707]
[1745591452529,16.93910948,154.57,154.48,16.93910948]
[1745591452730,6.467,154.54,154.48,16.93910948]
[1745591452930,28.0,154.54,154.48,16.93910948]
[1745591453130,16.93910948,154.53,154.44,23.40980948]
[1745591453332,16.93910948,154.51,154.43,28.0]
[1745591453534,28.0,154.5,154.42,20.70980948]
[1745591454328,6.4693,154.49,154.42,27.18140948]
[1745591454534,28.0,154.5,154.42,27.18140948]
[1745591454836,16.93910948,154.49,154.42,3.7707]
[1745591455534,16.93910948,154.49,154.41,9.98882]
[1745591456035,6.47,154.47,154.41,3.51672]
[1745591456228,16.93910948,154.49,154.41,3.51672]
[1745591456727,6.4704,154.46,154.41,3.51672]
[1745591456932,16.93910948,154.45,154.41,3.51672]
[1745591457134,20.67530948,154.45,154.41,3.51672]
[1745591457335,16.93910948,154.43,154.35,31.9626]
[1745591457536,28.02,154.42,154.35,3.9426]
[1745591457732,6.4724,154.41,154.35,3.9426]
[1745591458133,16.93910948,154.41,154.32,16.93910948]
[1745591458336,28.02,154.42,154.32,16.93910948]
[1745591458534,28.02,154.42,154.31,28.02]
[1745591458535,28.02,154.42,154.34,16.93910948]
[1745591458734,28.02,154.42,154.32,16.93910948]
[1745591458939,16.93910948,154.41,154.32,16.93910948]
[1745591459437,6.4728,154.4,154.31,34.4962]
[1745591459830,55.07065382,154.42,154.3,27.05065382]
[1745591460132,6.4734,154.39,154.3,33.52715382]
[1745591460333,28.02,154.38,154.3,33.52715382]
[1745591460538,28.02,154.38,154.27,37.48665382]
[1745591460731,27.05065382,154.36,154.24,55.07065382]
[1745591461034,33.52505382,154.36,154.27,6.4777]
[1745591461234,8.0351,154.37,154.27,6.4777]
[1745591462035,8.0351,154.37,154.24,27.05065382]
[1745591462335,8.0351,154.37,154.27,27.05065382]
[1745591462528,8.0351,154.37,154.28,10.4407]
[1745591462726,6.4751,154.35,154.27,27.05065382]
[1745591462930,55.05065382,154.34,154.24,31.01405382]
[1745591463134,58.86185382,154.34,154.21,27.05065382]
[1745591463334,27.05065382,154.31,154.2,3.8916]
[1745591463544,27.05065382,154.25,154.16,6.4826]
[1745591463735,28.0,154.24,154.15,27.05065382]
[1745591464136,28.0,154.24,154.15,33.53345382]
[1745591464334,28.0,154.24,154.15,27.05065382]
[1745591464335,6.4802,154.22,154.15,27.05065382]
[1745591464533,6.4802,154.22,154.12,55.05065382]
[1745591464838,6.4809,154.21,154.12,27.05065382]
[1745591465135,28.0,154.2,154.09,3.8916]
[1745591465336,27.05065382,154.19,154.09,3.8916]
[1745591465537,6.4823,154.17,154.09,3.8916]
[1745591465739,28.0,154.16,154.07,27.05065382]
[1745591465935,28.0,154.16,154.05,55.05065382]
[1745591466135,28.0,154.16,154.08,27.05065382]
[1745591466641,28.0,154.16,154.05,55.05065382]
[1745591466839,55.05065382,154.16,154.04,3.8916]
[1745591467139,6.4845,154.12,154.04,10.3792]
[1745591467330,28.0,154.11,154.04,3.8916]
[1745591467734,6.4857,154.09,154.01,6.489]
[1745591467940,27.05065382,154.1,153.99,27.05065382]
[1745591468136,27.05065382,154.1,153.97,3.9691]
[1745591468635,27.05065382,154.07,153.96,27.05065382]
[1745591468834,28.02,154.06,153.96,27.05065382]
[1745591469030,28.02,154.05,153.99,27.05065382]
[1745591469234,28.02,154.05,154.0,6.4893]
[1745591469439,28.02,154.05,153.99,27.05065382]
[1745591469935,28.02,154.05,153.96,55.07065382]
[1745591470239,34.5077,154.05,153.96,55.07065382]
[1745591470539,28.02,154.05,153.96,27.05065382]
[1745591470744,6.488,154.04,153.93,31.9891]
[1745591470931,28.02,154.05,153.93,31.9891]
[1745591471236,34.5074,154.05,153.93,31.9891]
[1745591471442,28.02,154.05,153.93,31.9891]
[1745591471840,6.4878,154.04,153.93,31.9891]
[1745591472141,6.4878,154.04,153.93,3.9691]
[1745591472336,6.4878,154.04,153.92,27.05065382]
[1745591472337,27.05065382,154.04,153.95,6.4915]
[1745591472535,3.8531,154.03,153.92,27.05065382]
[1745591473038,27.05065382,154.01,153.92,6.4928]
[1745591473335,27.05065382,153.98,153.87,28.04]
[1745591473538,27.05065382,153.98,153.88,6.4944]
[1745591473740,27.05065382,153.98,153.86,30.91165382]
[1745591473940,6.49,153.99,153.91,6.4932]
[1745591474132,28.04,154.0,153.92,27.05065382]
[1745591474543,28.04,154.0,153.88,28.04]
[1745591474737,28.04,154.0,153.89,27.05065382]
[1745591475039,6.4916,153.95,153.88,6.4942]
[1745591475236,28.04,153.94,153.88,6.4942]
[1745591475834,28.04,153.94,153.9,6.4935]
[1745591476036,28.04,153.94,153.87,27.05065382]
[1745591476446,28.04,153.94,153.9,6.4936]
[1745591477145,28.04,153.94,153.9,27.05065382]
[1745591477438,28.06,153.97,153.9,27.05065382]
[1745591477640,28.06,153.97,153.93,6.4921]
[1745591477845,28.06,153.97,153.93,27.05065382]
[1745591478041,28.06,154.0,153.93,27.05065382]
[1745591478241,28.06,154.0,153.97,6.4906]
[1745591478643,28.06,154.0,153.93,27.05065382]
[1745591479149,28.06,154.0,153.91,55.11065382]
[1745591479754,28.06,154.0,153.93,6.4923]
[1745591480050,28.06,154.0,153.91,55.11065382]
[1745591480243,28.06,154.0,153.96,6.4909]
[1745591480748,28.06,154.0,153.95,6.4912]
[1745591481051,28.06,154.0,153.94,27.05065382]
[1745591481345,34.5495,154.0,153.95,6.4912]
[1745591481549,28.06,154.0,153.94,27.05065382]
[1745591481849,28.06,154.0,153.91,55.11065382]
[1745591482045,34.5496,154.0,153.94,6.4917]
[1745591482344,28.06,154.0,153.91,27.05065382]
[1745591482552,28.06,154.0,153.88,27.05065382]
[1745591482948,27.05065382,153.99,153.85,27.05065382]
[1745591483145,27.05065382,153.96,153.82,382.05065382]
[1745591483448,35.6055,153.95,153.85,27.05065382]
[1745591484041,28.06,153.95,153.88,27.05065382]
[1745591484249,34.59615382,154.02,153.88,27.05065382]
[1745591484448,6.4901,153.99,153.93,6.4921]
[1745591484645,28.06,154.01,153.88,27.05065382]
[1745591484841,27.05065382,153.99,153.88,27.05065382]
[1745591485044,6.4915,153.96,153.9,6.4935]
[1745591485241,28.06,153.95,153.86,4.0578]
[1745591485451,28.06,153.95,153.91,6.493]
[1745591485747,28.06,153.95,153.88,27.05065382]
[1745591485947,34.5515,153.95,153.9,6.4933]
[1745591486147,28.06,153.95,153.9,27.05065382]
[1745591486752,28.06,153.95,153.86,4.0578]
[1745591487152,34.5518,153.95,153.9,6.4935]
[1745591487352,28.06,153.95,153.85,27.05065382]
[1745591487550,4.0473,153.94,153.88,27.05065382]
[1745591487747,28.06,153.95,153.91,6.4929]
[1745591488049,28.06,153.95,153.91,27.05065382]
[1745591488446,28.06,153.95,153.94,6.492]
[1745591488645,28.08,153.98,153.94,6.492]
[1745591488842,6.491,153.97,153.93,6.4923]
[1745591489045,28.08,153.98,153.91,27.05065382]
[1745591489352,32.1273,153.99,153.96,6.4908]
[1745591490254,38.6172,153.99,153.95,6.4914]
[1745591490548,32.1273,153.99,153.91,27.05065382]
[1745591491351,32.1273,153.99,153.96,6.4908]
[1745591491546,28.08,153.99,153.94,27.05065382]
[1745591491850,4.0922,154.04,153.94,27.05065382]
[1745591492152,19.4445,154.19,154.0,27.05065382]
[1745591492153,28.04,154.05,154.0,27.05065382]
[1745591492452,35.4736,154.08,154.0,27.05065382]
[1745591492647,28.04,154.08,154.0,27.05065382]
[1745591492852,28.04,154.08,154.04,6.4875]
[1745591493352,34.5263,154.08,154.04,6.4875]
[1745591493555,28.04,154.08,154.04,6.4875]
[1745591493855,28.04,154.08,154.0,27.05065382]
[1745591494052,34.5262,154.08,154.0,27.05065382]
[1745591494351,34.5262,154.08,154.03,6.4879]
[1745591494555,28.04,154.08,154.0,27.05065382]
[1745591494952,28.04,154.08,154.02,6.4884]
[1745591495151,6.4867,154.07,154.02,6.4884]
[1745591495457,28.04,154.08,154.0,27.05065382]
[1745591495753,6.4871,154.06,154.0,27.05065382]
[1745591495949,28.04,154.08,154.0,27.05065382]
[1745591496253,28.04,154.08,154.02,6.4884]
[1745591496654,28.04,154.08,154.0,27.05065382]
[1745591497856,28.04,154.08,154.02,6.4885]
[1745591498355,28.04,154.08,154.0,27.05065382]
[1745591499155,6.4869,154.06,154.01,6.4887]
[1745591499653,3.8644,154.07,154.01,6.4887]
[1745591500051,3.8644,154.07,154.0,27.05065382]
[1745591500353,6.4872,154.06,154.0,27.05065382]
[1745591500655,3.8644,154.07,153.97,55.09065382]
[1745591500956,6.4889,154.02,153.96,6.4909]
[1745591501161,28.02,154.01,153.96,6.4909]
[1745591501856,28.02,154.01,153.93,27.05065382]
[1745591502057,28.02,154.01,153.9,27.05065382]
[1745591502259,27.05065382,154.0,153.9,27.05065382]
[1745591502452,6.4907,153.97,153.92,6.4925]
[1745591502759,3.6883,153.99,153.9,27.05065382]
[1745591503056,31.7083,153.99,153.9,27.05065382]
[1745591503257,31.7083,153.99,153.96,6.4911]
[1745591503457,31.7083,153.99,153.9,27.05065382]
[1745591503658,31.7083,153.99,153.93,6.4921]
[1745591503859,31.7083,153.99,153.9,27.05065382]
[1745591504457,6.4904,153.98,153.93,6.4922]
[1745591504659,31.7083,153.99,153.9,27.05065382]
[1745591505759,6.4909,153.97,153.92,6.4927]
[1745591505960,31.7083,153.99,153.92,6.4927]
[1745591506159,31.7083,153.99,153.9,27.05065382]
[1745591506457,6.4909,153.97,153.92,6.4928]
[1745591506666,31.7083,153.99,153.9,27.05065382]
[1745591507051,3.9389,153.98,153.9,27.05065382]
[1745591508659,10.4293,153.98,153.93,6.4921]
[1745591508856,3.9389,153.98,153.93,6.4921]
[1745591509660,3.9389,153.98,153.94,6.4919]
[1745591509860,3.9389,153.98,153.9,27.05065382]
[1745591510251,3.9389,153.98,153.92,6.4925]
[1745591510450,3.9389,153.98,153.9,27.05065382]
[1745591510658,3.6883,153.99,153.93,27.05065382]
[1745591510852,3.6883,153.99,153.96,6.4909]
[1745591511056,495.26,154.03,153.93,27.05065382]
[1745591511261,467.22,154.03,153.96,27.05065382]
[1745591511562,93.09212152,154.05,153.99,27.05065382]
[1745591511857,89.37642152,154.05,154.02,6.4883]
[1745591512265,28.04,154.05,154.02,6.4883]
[1745591512656,28.04,154.05,154.03,6.4882]
[1745591512855,67.82312152,154.07,153.99,27.05065382]
[1745591513064,61.33642152,154.07,154.02,27.05065382]
[1745591514166,32.1293,154.09,154.02,27.05065382]
[1745591514865,28.04,154.09,154.02,27.05065382]
[1745591515363,28.04,154.09,154.06,6.4866]
[1745591515564,477.7761,154.11,154.05,27.05065382]
[1745591515764,473.8448,154.11,154.05,27.05065382]
[1745591516064,467.36,154.11,154.05,27.05065382]
[1745591516467,3.816,154.14,154.08,27.05065382]
[1745591516662,6.4834,154.15,154.08,27.05065382]
[1745591517066,89.35642152,154.16,154.08,27.05065382]
[1745591517265,28.02,154.16,154.08,27.05065382]
[1745591517766,6.4837,154.14,154.08,27.05065382]
[1745591518261,6.4885,154.03,153.88,12.989]
[1745591518462,27.05065382,153.96,153.8,61.33642152]
[1745591518666,39.9843,153.95,153.82,27.05065382]
[1745591518962,11.9643,153.95,153.85,27.05065382]
[1745591519164,7.9594,153.95,153.85,27.05065382]
[1745591519364,14.4513,153.95,153.87,44.1926856]
[1745591519665,7.9594,153.95,153.87,44.1926856]
[1745591519864,14.4513,153.95,153.87,50.6875856]
[1745591520059,7.9594,153.95,153.87,44.1926856]
[1745591520266,7.9594,153.95,153.86,28.02]
[1745591520766,7.9594,153.95,153.87,44.1926856]
[1745591520963,4.004,153.95,153.88,6.4944]
[1745591521167,4.004,153.95,153.87,44.1926856]
[1745591521667,4.004,153.95,153.87,50.6874856]
[1745591521864,4.004,153.95,153.86,28.02]
[1745591522067,52.2687856,153.95,153.83,28.0]
[1745591522466,8.0761,153.95,153.84,44.1926856]
[1745591523169,8.0761,153.95,153.86,6.4953]
[1745591523470,8.0761,153.95,153.84,44.1926856]
[1745591523670,8.0761,153.95,153.85,6.4954]
[1745591523969,8.0761,153.95,153.84,44.1926856]
[1745591524172,8.0761,153.95,153.86,6.4953]
[1745591524471,8.0761,153.95,153.84,44.1926856]
[1745591524968,8.0761,153.95,153.83,28.0]
[1745591524969,44.1926856,153.91,153.79,28.0]
[1745591525273,44.1926856,153.88,153.76,355.0]
[1745591525467,44.1926856,153.88,153.77,6.4991]
[1745591526261,31.8224,153.9,153.78,44.1926856]
[1745591526571,28.0,153.89,153.78,44.1926856]
[1745591526771,28.0,153.89,153.82,6.4968]
[1745591527475,28.0,153.89,153.81,6.4973]
[1745591527974,28.0,153.89,153.8,6.4978]
[1745591528171,28.0,153.89,153.79,28.0]
[1745591528472,28.0,153.89,153.8,44.1926856]
[1745591528672,3.8224,153.9,153.8,44.1926856]
[1745591528875,3.8224,153.9,153.82,44.1926856]
[1745591529068,28.0,153.92,153.82,44.1926856]
[1745591529270,28.0,153.92,153.85,44.1926856]
[1745591529467,3.8889,153.94,153.85,44.1926856]
[1745591529968,28.0,153.99,153.91,44.1926856]
[1745591530175,39.7197,154.02,153.94,44.1926856]
[1745591530863,31.9832,154.02,153.94,44.1926856]
[1745591531070,495.46,154.05,153.94,44.1926856]
[1745591531266,495.46,154.05,153.92,72.1926856]
[1745591531472,3.9832,154.04,153.92,72.1926856]
[1745591531775,3.9832,154.04,153.97,6.4903]
[1745591531974,3.9832,154.04,153.92,72.1926856]
[1745591532275,47.9082856,154.03,153.93,6.4923]
[1745591532574,47.9082856,154.03,153.89,495.48]
[1745591532575,44.1926856,154.0,153.89,495.48]
[1745591532772,28.0,153.99,153.89,28.0]
[1745591534080,28.0,153.99,153.91,44.1926856]
[1745591534375,31.8476,154.02,153.97,6.4904]
[1745591535075,31.8476,154.02,153.98,6.4902]
[1745591535267,31.8476,154.02,153.94,44.1926856]
[1745591535573,28.0,154.02,153.94,72.1926856]
[1745591535774,3.9832,154.04,153.97,44.1926856]
[1745591536276,3.9832,154.04,154.03,6.4882]
[1745591536878,3.9832,154.04,153.97,44.1926856]
[1745591537779,3.9832,154.04,153.95,48.0337856]
[1745591538580,3.989,154.08,153.98,44.1926856]
[1745591538877,3.989,154.08,154.01,44.1926856]
[1745591539079,3.989,154.08,153.99,28.0]
[1745591539380,3.989,154.08,154.03,6.4882]
[1745591539783,3.989,154.08,153.99,28.0]
[1745591540377,3.989,154.08,154.02,6.4883]
[1745591540577,3.989,154.08,153.98,44.1926856]
[1745591540779,3.989,154.08,154.04,6.4875]
[1745591540982,3.989,154.08,153.98,44.1926856]
[1745591541488,3.989,154.08,153.96,28.0]
[1745591541787,3.989,154.08,153.98,44.1926856]
[1745591541983,3.759,154.09,154.01,44.1926856]
[1745591542187,7.4852,154.09,154.01,44.1926856]
[1745591542593,28.0,154.08,153.98,44.1926856]
[1745591543378,44.1926856,154.07,153.97,28.0]
[1745591543585,44.1926856,154.07,153.95,48.0337856]
[1745591544091,44.1926856,154.07,154.0,6.489]
[1745591545591,44.1926856,154.07,154.01,6.4887]
[1745591546492,44.1926856,154.07,154.02,6.4886]
[1745591546693,28.0,154.08,153.95,48.0337856]
[1745591547298,28.0,154.08,154.02,6.4883]
[1745591547994,44.1926856,154.07,153.95,48.0337856]
[1745591548194,44.1926856,154.07,153.95,3.8411]
[1745591548589,28.0,154.08,153.97,44.1926856]
[1745591548990,28.0,154.08,154.03,6.4879]
[1745591549194,28.0,154.08,153.98,28.0]
[1745591549494,28.0,154.08,153.99,27.15420238]
[1745591549799,27.15420238,154.03,153.92,27.15420238]
[1745591549995,6.4889,154.02,153.97,6.4904]
[1745591550192,3.8793,154.02,153.93,3.7032]
[1745591550392,3.9994,154.01,153.93,3.7032]
[1745591551088,3.9994,154.01,153.97,6.4903]
[1745591551896,3.9994,154.01,153.92,27.15420238]
[1745591552094,3.9994,154.01,153.89,27.15420238]
[1745591552295,3.9994,154.01,153.95,6.4914]
[1745591552588,3.9994,154.01,153.89,27.15420238]
[1745591552794,3.9994,154.01,153.96,6.4908]
[1745591552795,10.4888,154.01,153.96,6.4908]
[1745591552985,3.9994,154.01,153.89,27.15420238]
[1745591553185,3.9994,154.01,153.92,27.15420238]
[1745591553495,3.9994,154.01,153.92,55.11420238]
[1745591554088,28.0,154.03,154.01,6.4889]
[1745591554289,6.4876,154.05,153.95,27.15420238]
[1745591554506,27.96,154.06,153.96,27.96]
[1745591555198,3.7421,154.05,153.99,6.4896]
[1745591555500,3.7421,154.05,153.96,27.96]
[1745591556191,6.4883,154.03,153.99,6.4896]
[1745591556597,3.7421,154.05,153.96,27.96]
[1745591556800,6.4879,154.04,154.0,6.4894]
[1745591557298,3.8078,154.03,154.0,6.4894]
[1745591557598,3.8078,154.03,153.96,27.96]
[1745591558501,3.7421,154.05,153.98,27.15420238]
[1745591558799,27.96,154.07,154.03,6.4878]
[1745591559195,27.96,154.07,153.98,27.15420238]
[1745591560601,27.96,154.07,154.05,6.4871]
[1745591560800,27.96,154.07,154.0,27.96]
[1745591561102,27.96,154.07,154.05,6.4871]
[1745591561698,27.96,154.07,154.05,6.4872]
[1745591562202,27.96,154.07,154.06,6.4869]
[1745591562702,3.9638,154.08,154.0,27.96]
[1745591562902,3.9638,154.08,154.06,6.4869]
[1745591563298,3.9638,154.08,154.0,27.96]
[1745591563501,3.9638,154.08,154.07,6.4865]
[1745591563707,31.9668,154.1,154.01,27.15420238]
[1745591564001,3.8932,154.11,154.01,27.15420238]
[1745591564002,27.96,154.11,154.01,27.15420238]
[1745591564700,27.96,154.11,154.1,6.4852]
[1745591566307,27.96,154.11,154.09,6.4855]
[1745591566910,27.96,154.11,154.1,6.4852]
[1745591567902,27.96,154.14,154.07,27.15420238]
[1745591568108,27.96,154.17,154.07,27.15420238]
[1745591568308,27.96,154.17,154.14,6.4832]
[1745591568606,27.96,154.17,154.08,27.96]
[1745591569507,6.4828,154.16,154.08,27.96]
[1745591569705,27.96,154.17,154.08,27.96]
[1745591570408,39.4812,154.2,154.1,27.15420238]
[1745591570704,3.8017,154.2,154.1,27.15420238]
[1745591570907,27.96,154.23,154.13,27.15420238]
[1745591571104,27.96,154.23,154.14,27.96]
[1745591571802,27.96,154.23,154.18,6.4818]
[1745591571803,6.4804,154.22,154.18,6.4818]
[1745591572009,27.96,154.23,154.18,6.4818]
[1745591572309,27.96,154.23,154.14,55.11420238]
[1745591572904,27.96,154.23,154.14,27.96]
[1745591573207,27.96,154.23,154.11,55.09420238]
[1745591573408,6.4815,154.19,154.15,6.4827]
[1745591573909,6.4811,154.2,154.11,55.09420238]
[1745591574107,27.15420238,154.21,154.11,55.09420238]
[1745591574307,27.15420238,154.18,154.08,55.09420238]
[1745591574506,6.4828,154.16,154.11,6.4845]
[1745591574709,6.4828,154.16,154.08,27.94]
[1745591575010,3.9009,154.17,154.08,27.94]
[1745591575510,6.483,154.16,154.12,6.4844]
[1745591575710,3.9009,154.17,154.08,27.94]
[1745591576211,6.4828,154.16,154.12,6.4841]
[1745591576511,7.7526,154.17,154.12,6.4841]
[1745591576715,11.5445,154.17,154.12,6.4841]
[1745591576906,6.4828,154.16,154.12,6.4841]
[1745591577106,11.5445,154.17,154.13,6.4838]
[1745591578611,11.5445,154.17,154.08,55.09420238]
[1745591579007,11.5445,154.17,154.15,6.483]
[1745591579312,11.5445,154.17,154.08,55.09420238]